Workbook

Sheet Objectives
A1: VSM Objectives
A2: Supporting Information | B2: Click | C2: Input | D2: Hours | E2: Description | F2: Output | G2: Comments
B3: 1 | C3: ID family / die line, plant layout | D3: 4 | E3: 1.0 Build a detailed SIPOC map / select a VSM | F3: SIPOC map | G3: SIPOC steps = VSM steps
B4: 2 | C4: Mapping module
B5: 3 | C5: Qty shipped | D5: 2 | E5: 2.0 Define customer requirements - TAKT | F5: TAKT time for the VSM | G5: TAKT to balance equipment, calculate ADD, 12 months of data minimum
B6: 4
B7: 5 | C7: Scheduled hours, PAY factors | D7: 8 | E7: 3.0 Define equipment (OEE) | F7: OEE calculations | G7: Need asset nameplate information, rated speeds, DT data for 12 months
B8: 6 | C8: OEE training module / Excel calculator
B9: 7 | C9: Amount, type, $ value | D9: 8 | E9: 4.0 Define inventory | F9: $, space, inventory time delay
B10: 8
B11: 9 | C11: SIPOC | D11: 4 | E11: 5.0 Map: Build process flows (including shipping/supplier logistics)
B12: 10
B13: 11 | C13: SIPOC | D13: 4 | E13: 5.1 Map: Build information flows
B14: 12
B15: 13 | C15: SIPOC | D15: 4 | E15: 5.2 Map: Create the time line
B16: 14
B17: 15 | D17: 4 | E17: 5.3 Complete the map
B18: 16
B19: 17 | D19: 4 | E19: 6.0 Prioritize opportunities / List projects in pipeline input file | G19: This pipeline input tab equals the fields required for the pipeline database
B20: 18
B21: 19 | D21: 8 | E21: 7.0 Map: Build the future state map & 12 month plan | F21: Future state map, 12 month plan
B22: 20
B24: 1
B25: 2
B26: 3
B27: 4
B28: 5
B29: 6
B30: 7
B31: 8
B32: 9
B33: 10
B34: 11
B35: 12
B36: 13
B37: 14
B38: 15
B39: 16
B40: 17
B41: 18
B42: 19
B43: 20

Sheet SCO Data Request
B2: Shipment Data:
B3: · Shipments per week (or per day)
B4: · By Die description
B5: · By SKU description
B6: · Quantity (pallets)
B7: · Quantity per pallet
B8: · Ship to name
B9: · Ship to location
B10: · For the past (18) months
B12: Inventory:
B13: · Raw material
B14: · WIP
B15: · Finished goods
B16: · Quantity
B17: · Type (roll, pallet, etc.)
B18: · Valuation ($)
B19: · Location
B20: · Description
B21: · Die / SKU description
B22: · Current on-hand snap shot. If the current snap shot is seasonally low … or seasonally high please provide a range on what multiplier to use (e.g. – 150% lower in summer, etc.)
B24: Routing information:
B25: · Routing steps (work centers) for each die
B26: · Description of SKU
B27: · Description of work center
B29: Equipment Data:
B30: · Name / workcenter name
B31: · Ideal run speed
B32: · Average run speed
B33: · Quantity, length of changeover
B34: · Quantity, duration of down time
B35: · Top reason codes for down time
B36: · Yield / scrap %’s
B37: · Main assets only – (9) months of data
B39: Personnel:
B40: · List of ‘learning leaders’ in all areas of the plant
B41: · Name, title, department, years of service
B42: · Organizational chart
B44: Other:
B45: · Any past Kaizen report outs / project report outs in the last (12) months

Sheet Agenda W1 Current
A1: VSM
A2: T | B2: S | C2: Day 1 | D2: T | E2: S | F2: Day 2 | G2: T | H2: S | I2: Day 3 | J2: T | K2: S | L2: Day 4 | M2: T | N2: S | O2: Day 5
A3: 07:30:00 | D3: 07:30:00 | G3: 07:30:00 | J3: 07:30:00 | M3: 07:30:00
A4: 08:00:00 | C4: Opener / ice breaker / or Lean training overview | D4: 08:00:00 | F4: Define equipment (OEE) | G4: 08:00:00 | I4: Complete / finish any outstanding work in sections 1, 2, 3, or 4 | J4: 08:00:00 | L4: Create time line. VA, NVA, delays & total lead time in transactional & manufacturing | M4: 08:00:00 | O4: Build future state VSM
A5: 08:30:00 | D5: 08:30:00 | G5: 08:30:00 | J5: 08:30:00 | M5: 08:30:00
A6: 09:00:00 | C6: Build SIPOC map - Waste walk | D6: 09:00:00 | G6: 09:00:00 | J6: 09:00:00 | M6: 09:00:00
A7: 09:30:00 | D7: 09:30:00 | G7: 09:30:00 | J7: 09:30:00 | M7: 09:30:00
A8: 10:00:00 | D8: 10:00:00 | G8: 10:00:00 | J8: 10:00:00 | M8: 10:00:00
A9: 10:30:00 | D9: 10:30:00 | G9: 10:30:00 | J9: 10:30:00 | M9: 10:30:00
A10: 11:00:00 | D10: 11:00:00 | G10: 11:00:00 | J10: 11:00:00 | M10: 11:00:00
A11: 11:30:00 | D11: 11:30:00 | G11: 11:30:00 | J11: 11:30:00 | M11: 11:30:00
A12: 12:00:00 | D12: 12:00:00 | G12: 12:00:00 | J12: 12:00:00 | M12: 12:00:00
A13: 12:30:00 | D13: 12:30:00 | G13: 12:30:00 | J13: 12:30:00 | M13: 12:30:00
A14: 13:00:00 | C14: Define customer requirements - TAKT | D14: 13:00:00 | F14: Define inventory | G14: 13:00:00 | I14: Map process flows Map information flows Take 'before' pictures of the process | J14: 13:00:00 | L14: Complete the (first pass) of the map | M14: 13:00:00 | O14: Build 12 month plan
A15: 13:30:00 | D15: 13:30:00 | G15: 13:30:00 | J15: 13:30:00 | M15: 13:30:00
A16: 14:00:00 | D16: 14:00:00 | G16: 14:00:00 | J16: 14:00:00 | M16: 14:00:00
A17: 14:30:00 | D17: 14:30:00 | G17: 14:30:00 | J17: 14:30:00 | M17: 14:30:00
A18: 15:00:00 | D18: 15:00:00 | G18: 15:00:00 | J18: 15:00:00 | M18: 15:00:00 | O18: Report Out
A19: 15:30:00 | D19: 15:30:00 | G19: 15:30:00 | J19: 15:30:00 | L19: Begin prioritization | M19: 15:30:00
A20: 16:00:00 | C20: Define equipment (OEE) | D20: 16:00:00 | G20: 16:00:00 | J20: 16:00:00 | M20: 16:00:00
A21: 16:30:00 | D21: 16:30:00 | G21: 16:30:00 | J21: 16:30:00 | M21: 16:30:00
A22: 17:00:00 | D22: 17:00:00 | G22: 17:00:00 | J22: 17:00:00 | M22: 17:00:00
C24: Course Timing: | D24: Hours | F24: Daily deliverables from team: | I24: Daily deliverables from team: | L24: Daily deliverables from team: | O24: Daily deliverables from team:
C26: 1.0 Build a detailed SIPOC map
C27: 2.0 Define customer requirements - TAKT
C28: 3.0 Define equipment (OEE)
C29: 4.0 Define inventory
C30: 5.0 Map: Build process flows
C31: 5.1 Map: Build information flows
C32: 5.2 Map: Create the time line
C33: 5.3 Complete the map
C34: 6.0 Prioritize opportunities
C35: 7.0 Map: Build the future state map & 12 month plan
C37: Simulation
C38: Book Report
C39: .pptx Module
C40: Teachback / Exercise
C42: Status
C43: On schedule
C44: Late
C45: Missed

Sheet Agenda W2 Future
A1: VSM
A2: T | B2: S | C2: Day 1 | D2: T | E2: S | F2: Day 2 | G2: T | H2: S | I2: Day 3
A3: 07:30:00 | D3: 07:30:00 | G3: 07:30:00
A4: 08:00:00 | C4: Review current state map Review list of prioritized projects Review future state map Complete future state map (if needed) | D4: 08:00:00 | F4: Write charters | G4: 08:00:00 | I4: Build certificaton matrix (names, speciality areas)
A5: 08:30:00 | D5: 08:30:00 | G5: 08:30:00
A6: 09:00:00 | D6: 09:00:00 | G6: 09:00:00
A7: 09:30:00 | D7: 09:30:00 | G7: 09:30:00
A8: 10:00:00 | D8: 10:00:00 | G8: 10:00:00
A9: 10:30:00 | D9: 10:30:00 | G9: 10:30:00
A10: 11:00:00 | D10: 11:00:00 | G10: 11:00:00
A11: 11:30:00 | D11: 11:30:00 | G11: 11:30:00
A12: 12:00:00 | D12: 12:00:00 | G12: 12:00:00
A13: 12:30:00 | D13: 12:30:00 | G13: 12:30:00
A14: 13:00:00 | D14: 13:00:00 | G14: 13:00:00
A15: 13:30:00 | D15: 13:30:00 | F15: Populate project pipeline | G15: 13:30:00
A16: 14:00:00 | D16: 14:00:00 | G16: 14:00:00
A17: 14:30:00 | D17: 14:30:00 | G17: 14:30:00
A18: 15:00:00 | D18: 15:00:00 | G18: 15:00:00
A19: 15:30:00 | D19: 15:30:00 | G19: 15:30:00
A20: 16:00:00 | D20: 16:00:00 | G20: 16:00:00
A21: 16:30:00 | D21: 16:30:00 | G21: 16:30:00
A22: 17:00:00 | D22: 17:00:00 | G22: 17:00:00
C24: Course Timing: | F24: Daily deliverables from team: | I24: Daily deliverables from team:
C37: Simulation
C38: Book Report
C39: .pptx Module
C40: Teachback / Exercise
C42: Status
C43: On schedule
C44: Late
C45: Missed

Sheet 1-SIPOC
A1: SIPOC
A2: Supporting Information | B2: Click | C2: Input | D2: =SUM(D5:D22) -> 1 | E2: Exercise Description | F2: Output | G2: Comment
B3: 1 | C3: Process knowledge | D3: 0.1 | E3: Define the start and end points of the process being evaluated | G3: This frames in the project
B4: 2 | C4: Markers, flip charts | E4: Have all teams build SIPOC on flip charts
B5: 3 | C5: Process knowledge, RCFA toolbox | D5: 0.1 | E5: Recommend starting at process step. Most practioners recommend identifing about 5 - 10 key steps. Each step should be "Action-Verb" | F5: list main steps
B6: 4 | D6: 0.1 | E6: Add inputs (Things) needed for that step. Mention 6-M's related to Fishbone. Caution going too detailed or too broadly | F6: Inputs - sources of variation
B7: 5 | D7: 0.1 | E7: Add the outputs (things) - caution: some people confuse the outputs with their attributes | F7: Outputs
B8: 6 | D8: 0.1 | E8: Identify who provides the inputs - Keep specific as possible | F8: Suppliers
B9: 7 | D9: 0.1 | E9: Identify who (and their process step) gets the goods or services provided | F9: Customers
B10: 8 | D10: 0.25 | E10: All teams report out on their SIPOCs and what they learned
B11: 9 | D11: 0.25 | E11: Invite the other teams to offer comments and offer coaching to all teams
B12: 10 | E12: Instruct all teams to record refined SIPOC in their storyboard | F12: Updated Storyboard
B13: 11
B14: 12 | E14: WASTE WALK
B15: 13
B16: 14 | E16: Affinity voting on steps within process that present most opportunities
B17: 15
B18: 16
B19: 17
B20: 18
B21: 19
B22: 20
B24: 1
B25: 2
B26: 3
B27: 4
B28: 5
B29: 6
B30: 7
B31: 8
B32: 9
B33: 10
B34: 11
B35: 12
B36: 13
B37: 14
B38: 15
B39: 16
B40: 17
B41: 18
B42: 19
B43: 20

Sheet 2-TAKT
A2: Available Time
C3: # days worked per year | D3: 270
C4: # shifts per day | D4: 3
C5: Hours | D5: =D4*D3*8 -> 6480
C6: Mins | D6: =D5*60 -> 388800
C7: Seconds | D7: =D6*60 -> 23328000
F9: Demand must be expressed as same unit of measure as available time
A10: Demand | B10: 877460 | C10: (1Jan - 15May) | D10: =B10*2 -> 1754920 | E10: Cartons
C11: ADD | D11: =D10/D3 -> 6499.703704 | E11: Cartons
A14: TAKT
B15: TAKT | C15: Available Time | E15: =D7 -> 23328000 | F15: Secs | G15: =E15/E16 -> 13.29291364 | H15: Secs
C16: Demand | E16: =D10 -> 1754920 | F16: Units
C19: Cycle Time for (4) Cartons | D19: Raw C/T | E19: OEE | F19: Net C/T | G19: Net C/T | H19: TAKT
H20: =$G$15 -> 13.29291364
C21: ASI Laminator | D21: =C36 -> 1.666666667 | E21: 0.3 | F21: =G21-D21 -> 3.888888889 | G21: =D21/E21 -> 5.555555556 | H21: =$G$15 -> 13.29291364
C22: Expert Cutter | D22: =C40 -> 1.666666667 | E22: 0.274 | F22: =G22-D22 -> 4.416058394 | G22: =D22/E22 -> 6.082725061 | H22: =$G$15 -> 13.29291364
C23: KLC Gluer | D23: =C45 -> 0.8333333333 | E23: 0.115 | F23: =G23-D23 -> 6.413043478 | G23: =D23/E23 -> 7.246376812 | H23: =$G$15 -> 13.29291364
H24: =$G$15 -> 13.29291364
D25: =SUM(D20:D24) -> 4.166666667
A28: CYCLE TIME CALCS BELOW
A29: (4 up per sheet)
A31: Laminator
B32: Speed | C32: 500 | D32: feet/minute
B33: VMA Sheet size | C33: 58 3/4"
C34: 5 | D34: feet (rounding up)
C35: =C32/C34 -> 100 | D35: Sheets / minute
C36: =C35/60 -> 1.666666667 | D36: Sheets / second
A38: Cutter | B38: Speed | C38: 6000 | D38: Sheets / hour
C39: =C38/60 -> 100 | D39: Sheets / minute
C40: =C39/60 -> 1.666666667 | D40: Sheets / second
A42: Gluer | B42: Speed | C42: 12000 | D42: Cartons / hour
C43: =C42/4 -> 3000 | D43: Handicap (cartons / hour)
C44: =C43/60 -> 50 | D44: Cartons / minute
C45: =C44/60 -> 0.8333333333 | D45: Cartons / second

Sheet 3-Equipment (OEE)
A1: OEE
A2: Supporting Information | B2: Click | C2: Input | D2: =SUM(D3:D22) -> 0 | E2: Exercise Description | F2: Output | G2: Comments
B3: 1 | C3: OEE Excel Calculator | E3: Training / overview | G3: Customize the template based on needs of application
B4: 2 | C4: OEE Training Module
B5: 3
B6: 4 | C6: Nameplate run speeds | E6: Calculate performance | F6: P % | G6: Actual / ideal
B7: 5 | C7: Data to calculate avg. run speeds
B8: 6
B9: 7 | C9: Scheduled hours (lights on) | E9: Calculate availability | F9: A % | G9: Actual / ideal
B10: 8 | C10: Downtime data
B11: 9 | C11: Changeover data
B12: 10
B13: 11
B14: 12
B15: 13 | C15: Scrap data | E15: Calculate yield | F15: Y % | G15: Actual / ideal
B16: 14 | C16: Reject data
B17: 15
B18: 16
B19: 17
B20: 18 | E20: Calculate OEE | F20: OEE % | G20: P% * A% * Y%
B21: 19
B22: 20
B24: 1
B25: 2
B26: 3
B27: 4
B28: 5
B29: 6
B30: 7
B31: 8
B32: 9
B33: 10
B34: 11
B35: 12
B36: 13
B37: 14
B38: 15
B39: 16
B40: 17
B41: 18
B42: 19
B43: 20

Sheet 4-Inventory
A1: Inventory
A2: Supporting Information | B2: Click | C2: Input | D2: =SUM(D5:D22) -> 0 | E2: Exercise Description | F2: Output | G2: Comment
B3: 1
B4: 2
B5: 3
B6: 4
B7: 5
B8: 6
B9: 7
B10: 8
B11: 9
B12: 10
B13: 11
B14: 12
B15: 13
B16: 14
B17: 15
B18: 16
B19: 17
B20: 18
B21: 19
B22: 20
B24: 1
B25: 2
B26: 3
B27: 4
B28: 5
B29: 6
B30: 7
B31: 8
B32: 9
B33: 10
B34: 11
B35: 12
B36: 13
B37: 14
B38: 15
B39: 16
B40: 17
B41: 18
B42: 19
B43: 20

Sheet 5-Current State Map
A1: Instructions | G1: Denotes Entry Field | AL1: VSM | AM1: Entire Facility
A3: Value Stream Mapping Icons | G3: Widget Defined | H3: Transactional Processes | AJ3: Operational Metrics
AK4: On time delivery
G5: Lot Size | AK5: # Complaints
AK6: Recordables
G7: ADD
H8: Type | J8: Email | L8: Job Jackets | N8: Job Jackets | Y8: Read
X9: Summary | AJ9: Financial Metrics
H10: Pieces | X10: =H10 -> Pieces | Y10: =SUM(I10:T10) -> 0 | AK10: Scrap $
H11: Days | X11: =H11 -> Days | Y11: =SUM(I11:T11) -> 0
H12: $'s | X12: =H12 -> $'s | Y12: =SUM(I12:T12) -> 0
I13: Define Specs | K13: Review Spec | M13: Quote | O13: Design | Q13: Order Materials | S13: Schedule | U13: Create WOs | AJ13: Transportation
Q14: (Stock check) | AK14: Annual costs
F15: Manning | G15: # FTE | X15: =G15 -> # FTE | Y15: =SUM(I15:U15) -> 0
G16: # Temps | X16: =G16 -> # Temps | Y16: 0
G17: OT $ / Week | X17: =G28 -> # Errors / Week | Y17: 0
X18: =G17 -> OT $ / Week | Y18: 0
F19: Manning | G19: Handoffs | X19: =G23 -> Screens Accessed | Y19: 0
G20: Approvals | X20: =G29 -> Office Distance Ft | Y20: 0 | AJ20: Warehousing
X21: =G24 -> Outbound Email / Week | Y21: 0 | AK21: Annual costs
F23: Transactions | G23: Screens Accessed
G24: Outbound Email / Week
G25: Inbound Email / Week | AJ25: Inventory Turns
G26: Email hours / Week | X26: =G25 -> Inbound Email / Week | Y26: =SUM(I26:U26) -> 0 | AK26: Annual Sales
X27: =G26 -> Email hours / Week | Y27: =SUM(I27:U27) -> 0 | AK27: Total Inventory $'s
F28: Other | G28: # Errors / Week | X28: =G19 -> Handoffs | Y28: =SUM(I28:U28) -> 0
G29: Office Distance Ft | X29: =G20 -> Approvals | Y29: =SUM(I29:U29) -> 0
X30: =#REF! ->  | Y30: =SUM(I30:U30) -> 0
X32: Totals
G33: Mins | H33: VA | I33: 1 | K33: 2 | M33: 3 | O33: 12 | Q33: 2 | S33: 0.5 | U33: 0.5 | X33: =SUM(I33:V33) -> 21 | Y33: Mins
G34: Hrs | H34: NVA | O34: 3 | Q34: 4 | S34: 0.5 | U34: 0.5 | X34: =SUM(I34:V34) -> 8 | Y34: Hrs
G35: Days | H35: Delay | J35: 8 | L35: 16 | N35: 60 | P35: 8 | R35: =6*7*8 -> 336 | T35: 1 | V35: 1 | X35: =SUM(I35:V35) -> 430 | Y35: Days
K39: Widget Defined | M39: Manufacturing Processes | AM39: Summary
Q40: Delivery schedules | AG40: Shipping schedules
K41: Lot Size
L42: Inventory
K43: ADD | L43: Type | N43: Rolls | O43: Ink | P43: Corrugated | Q43: Sheets | AH43: RM | AI43: WIP | AJ43: FG
AN44: Read
L45: Pieces | AM45: =L45 -> Pieces | AN45: =SUM(N45:AK45) -> 0
L46: Days | AM46: =L46 -> Days | AN46: =SUM(N46:AK46) -> 0
L47: $'s | AM47: =L47 -> $'s | AN47: =SUM(N47:AK47) -> 0
U48: Fab | W48: Machine | Y48: Weld | AA48: Hydro/Dip | AC48: Vessel Assy | AE48: Paint | AG48: Ready to Ship
K50: Manning | L50: # FTE | AM50: =L50 -> # FTE | AN50: =SUM(U50:AK50) -> 0
L51: # Temps | AM51: =L51 -> # Temps | AN51: 0
L52: OT $ / Week | AM52: OT $ / Week | AN52: 0
L53: # Shifts | AM53: # Shifts | AN53: 0
K54: Equipment | AM54: 0 | AN54: 0
AM55: 0 | AN55: 0
K56: Perf | L56: Ideal speed | AM56: Ideal speed | AN56: 0
L57: Avg. Run Speed | AM57: Avg. Run Speed | AN57: 0
L58: P % | AM58: P % | AN58: 0
AM59: 0 | AN59: 0
K60: Avail | L60: DT Hrs | AM60: DT Hrs | AN60: 0
L61: CO Hrs | AM61: CO Hrs | AN61: 0
L62: A % | AM62: A % | AN62: 0
AM63: 0 | AN63: 0
L64: # CO's / Week | M64: Major | AM64: # CO's / Week | AN64: 0
L65: CO Time | M65: Major | AM65: CO Time | AN65: 0
L66: # CO's / Week | M66: Minor | AM66: # CO's / Week | AN66: 0
L67: CO Time | M67: Minor | AM67: CO Time | AN67: 0
AM68: 0 | AN68: 0
K69: Yield | L69: Scrap % | AM69: Scrap % | AN69: 0
L70: Scrap $ | AM70: Scrap $ | AN70: 0
L71: Y % | AM71: Y % | AN71: 0
K72: OEE | AM72: 0 | AN72: 0
AM73: 0 | AN73: 0
K74: Other
S78: Units | AI78: Units | AK78: Mfg | AL78: Trans | AN78: Total
S79: Mins | T79: VA (C/T) | AI79: Mins | AK79: =SUM(U79:AG79) -> 0 | AL79: =X33 -> 21 | AN79: =AK79+AL79 -> 21
S80: Hrs | T80: NVA | AI80: Hrs | AK80: =SUM(U80:AG80) -> 0 | AL80: =X34 -> 8 | AN80: =AK80+AL80 -> 8
S81: Days | T81: Delay | AI81: Days | AK81: =SUM(U81:AG81) -> 0 | AL81: =X35 -> 430 | AN81: =AK81+AL81 -> 430
L82: Distance Ft

Sheet 6-Solution Selection Matrix
C1: BENEFIT | I1: EFFORT
B2: BRAINSTORMED SOLUTIONS/PROJECT IDEAS | C2: Net Income | D2: Strategic Benefit 1 | E2: Strategic Benefit 2 | F2: Cash Flow | G2: Revenue Growth | H2: TOTAL BENEFIT | I2: Personnel Requirements | J2: Capital Expenditure Requirements | K2: Project Risk (Low, Medium, High) | L2: TOTAL EFFORT | M2: Benefit / Effort | N2: Benefit - Effort | O2: RECOMMENDED PRIORITY
A3: # | B3: Importance Weighting: | C3: 0.3 | F3: 0.6 | G3: 0.1 | H3: =SUM(C3:G3) -> 1 | I3: 0.2 | J3: 0.7 | K3: 0.1 | L3: =SUM(I3:K3) -> 1
A4: 1 | H4: =SUMPRODUCT(C4:G4,$C$3:$G$3) -> 0 | L4: =SUMPRODUCT(I4:K4,$I$3:$K$3) -> 0 | M4: =IF(L4=0,0,H4/L4) -> 0 | N4: =H4-L4 -> 0
A5: 2 | H5: 0 | L5: 0 | M5: 0 | N5: 0
A6: 3 | H6: 0 | L6: 0 | M6: 0 | N6: 0
A7: 4 | H7: 0 | L7: 0 | M7: 0 | N7: 0
A8: 5 | H8: 0 | L8: 0 | M8: 0 | N8: 0
A9: 6 | H9: 0 | L9: 0 | M9: 0 | N9: 0
A10: 8 | H10: 0 | L10: 0 | M10: 0 | N10: 0
A11: 9 | H11: 0 | L11: 0 | M11: 0 | N11: 0
A12: 10 | H12: 0 | L12: 0 | M12: 0 | N12: 0
A13: 11 | H13: 0 | L13: 0 | M13: 0 | N13: 0
A14: 12 | H14: 0 | L14: 0 | M14: 0 | N14: 0
A15: 13 | H15: 0 | L15: 0 | M15: 0 | N15: 0
A16: 14 | H16: 0 | L16: 0 | M16: 0 | N16: 0
A17: 15 | H17: 0 | L17: 0 | M17: 0 | N17: 0
A18: 16 | H18: 0 | L18: 0 | M18: 0 | N18: 0
A19: 17 | H19: 0 | L19: 0 | M19: 0 | N19: 0
B21: Valuation Parameters
D22: (see direction tab for detail)
B23: Net Income:
B24: 1 = Net Income impact of less than $25K
B25: 3 = Net Income impact of between $25K to $100K
B26: 9 = Net Income impact of greater than $100K
B28: Cash Flow:
B29: 1 = $25K improvement in Cash Flow
B30: 3 = $25K to $50K improvement in Cash Flow
B31: 9 = Greater than $50K improvement in Cash Flow
B33: Revenue Growth:
B34: 1 = Less than a 1% improvement in Revenue Growth
B35: 3 = 1% to 3% improvement in Revenue Growth
B36: 9 = Greater than a 3% improvement in Revenue Growth
B38: People Resource Requirements:
B39: 1 = 240 or fewer people hours. For example, 1 week Kaizen Event with 6 people (not including preparation & follow-up work)
B40: 3 = 240 to 520 people hours
B41: 9 = More than 520 people hours
B43: Capital Expenditure Requirements:
B44: 1 = Less than $25K
B45: 3 = Between $25K and $100K
B46: 9 = Greater than $100K
B48: Idea/Project Risk
B49: 1 = Low
B50: 3 = Medium
B51: 9 = High

Sheet 6-PP Input Template
A2: 1 - Enter and prioritize a new project | N2: 4 - Enter Project Savings
A3: Project Name | H3: Benefit | K3: Effort
A4: Project Area | B4: Project Name | C4: Plant | D4: Problem Statement | E4: Alignment | F4: Estimated Annual Savings | G4: Financial Assumptions | H4: Net Income | I4: Cash Flow | J4: P-A-Y:OEE | K4: Personnel Requirements | L4: Capital Expenditures | M4: Risk | N4: Primary Metric | O4: Project Type | P4: Primary Tool | Q4: Owner | R4: Champion | S4: Estimated Annual Savings | T4: Replication Opportunity Exists | U4: Tools & Standard Work used
B5: Certify_Kaizen Facilitators | F5: 21000 | S5: =F5 -> 21000
B6: Certify 5 to 7 RCFA Analysts | F6: 21000 | S6: 21000
B7: Certify 5 to 7 ToyotaKata Coaches | F7: 6000 | S7: 6000
B8: Certify 8 to 12 SMED Experts | F8: 17500 | S8: 17500
B9: Certify_5s/Visual Experts | F9: 4000 | S9: 4000
B10: Certified Print Crews | S10: 0
B11: Certified Cutter Crews | S11: 0
B12: Certified Gluer Crews | S12: 0
B13: 3P Ideal Layout | S13: 0
B14: Consolidate one or more locations | S14: 0
S15: 0
S16: 0
S17: 0
S18: 0
S19: 0
S20: 0
S21: 0
S22: 0
S23: 0
S24: 0
S25: 0
S26: 0
S27: 0
S28: 0
S29: 0
S30: 0
S31: 0
A33: Drop Down Lists
A35: Project Area | C35: Plant | E35: Alignment | H35: Net Income | I35: Cash Flow | J35: P-A-Y:OEE | K35: Personnel Requirements | L35: Capital Expenditures | M35: Risk | N35: Primary Metric | O35: Project Type | P35: Primary Tool
A37: Customer Service | C37: Baldwinsville | E37: 1. Design and build an information systems infrastructure that supports our operating processes | H37: 0 - None | I37: 0 - None | J37: 0 - None | K37: 0 - None | L37: 0 - None | M37: 1 - Low (easy to train, easy to gain acceptance) | N37: Cycle Time | O37: 1. Just-Do-It | P37: 3P
A38: Scheduling | C38: Greensboro | E38: 2. Create a process to increase sustainability by driving energy reduction | H38: 1 - Impact of less than $25K | I38: 1 - Impact of less than $25K | J38: 1 - Less than 3% improvement | K38: 1 - 240 or fewer people hours | L38: 1 - Less than $5K | M38: 3 - Medium | N38: Down time | O38: 2. Work Out | P38: 5 Why's
A39: Planning | C39: Hamilton | E39: 3. Create a platform to drive innovation from identification through implementation | H39: 3 - Impact of between $25K and $50K | I39: 3 - Impact of between $25K and $50K | J39: 3 - 3% to 5% improvement | K39: 3 - 240 to 520 people hours | L39: 3 - Between $5K and $25K | M39: 9 - High (difficult to train, hard to gain acceptance) | N39: Change over | O39: 3. SCORE | P39: 5s
A40: Purchasing | C40: Kansas City | E40: 4. Implement a strategically aligned and dynamic packaging sales pipeline management process | H40: 9 - Impact of greater than $50K | I40: 9 - Impact of greater than $50K | J40: 9 - Greater than 5% improvement | K40: 9 - More than 520 people hours | L40: 9 - Greater than $25K | N40: Raw Materials: Scrap / Waste | O40: 4. RCFA | P40: Affinity Diagram
A41: Sheeting | C41: Montreal | E41: 5. Create and implement company wide, “World Class” operating processes | N41: Defective Parts | O41: 5. DMAIC | P41: Autonomous Maintenance
A42: Printing | C42: Hastings | E42: 6. Create a value focused packaging sales organization | N42: Labor | O42: 6. Project | P42: Brainstorming
A43: Cutting | C43: Philadelphia Mill | E43: 7. Engage the entire organization to create a single high performance culture | N43: Supplies / Expenses | P43: Cellular design
A44: Glueing | C44: Alexandria | N44: Inventory (WIP, FG) | P44: Cross training matrix
A45: Laminating | N45: Transactional | P45: Daily management
A46: Windowing | N46: Lead time | P46: Data Collection Plan
A47: Mill: Pulp Prep | N47: Complaints / Returns | P47: Fishbone diagram
A48: Mill: Wet End | N48: Safety Improvement | P48: FMEA
A49: Mill: Forming | P49: Gantt Chart
A50: Mill: Drying | P50: Histogram/Bar Chart
A51: Mill: Coating | P51: Kanban
A52: Mill: Wind-Up | P52: Leader standard work
A53: Mill: Slitting / Rewind | P53: Mind Mapping
A54: Warehouse | P54: Mistake proofing
A55: Shipping | P55: OEE calculation
A56: Facilities | P56: Pareto analysis
A57: Invoicing | P57: Pivot tables
A58: Finance | P58: Prioritization Matrix
A59: Other | P59: RACI Chart
P60: Scatter Diagram
P61: Separation of person / machine
P62: SIPOCr
P63: SMED
P64: Spaghetti diagram
P65: Standard work
P66: Swim lane map
P67: TAKT - line of balance
P68: TPM
P69: VSM
P70: Why-Because
P71: WORMPIIT form
P72: ……
P73: DOE
P74: Fault Tree Analysis
P75: Heijunka
P76: Policy deployment
P77: QFD
P78: Stakeholder analysis
P79: Strategic SVSM
P80: TRIZ
P81: OTHER

Sheet 7-Future State Map
A1: Instructions | G1: Denotes Entry Field | AL1: VSM | AM1: Entire Facility
A3: Value Stream Mapping Icons | G3: Widget Defined | H3: Transactional Processes | AJ3: Operational Metrics
AK4: On time delivery
G5: Lot Size | AK5: # Complaints
AK6: Recordables
G7: ADD
H8: Type | J8: Email | L8: Job Jackets | N8: Job Jackets | Y8: Read
X9: Summary | AJ9: Financial Metrics
H10: Pieces | X10: =H10 -> Pieces | Y10: =SUM(I10:T10) -> 0 | AK10: Scrap $
H11: Days | X11: =H11 -> Days | Y11: =SUM(I11:T11) -> 0
H12: $'s | X12: =H12 -> $'s | Y12: =SUM(I12:T12) -> 0
I13: Define Specs | K13: Review Spec | M13: Quote | O13: Design | Q13: Order Materials | S13: Schedule | U13: Create WOs | AJ13: Transportation
Q14: (Stock check) | AK14: Annual costs
F15: Manning | G15: # FTE | X15: =G15 -> # FTE | Y15: =SUM(I15:U15) -> 0
G16: # Temps | X16: =G16 -> # Temps | Y16: 0
G17: OT $ / Week | X17: =G28 -> # Errors / Week | Y17: 0
X18: =G17 -> OT $ / Week | Y18: 0
G19: Handoffs | X19: =G23 -> Screens Accessed | Y19: 0
G20: Approvals | X20: =G29 -> Office Distance Ft | Y20: 0 | AJ20: Warehousing
X21: =G24 -> Outbound Email / Week | Y21: 0 | AK21: Annual costs
F23: Transactions | G23: Screens Accessed
G24: Outbound Email / Week
G25: Inbound Email / Week | AJ25: Inventory Turns
G26: Email hours / Week | X26: =G25 -> Inbound Email / Week | Y26: =SUM(I26:U26) -> 0 | AK26: Annual Sales
X27: =G26 -> Email hours / Week | Y27: =SUM(I27:U27) -> 0 | AK27: Total Inventory $'s
F28: Other | G28: # Errors / Week | X28: =G19 -> Handoffs | Y28: =SUM(I28:U28) -> 0
G29: Office Distance Ft | X29: =G20 -> Approvals | Y29: =SUM(I29:U29) -> 0
X30: =#REF! ->  | Y30: =SUM(I30:U30) -> 0
X32: Totals
G33: Mins | H33: VA | I33: 1 | K33: 2 | M33: 3 | O33: 12 | Q33: 2 | S33: 0.5 | U33: 0.5 | X33: =SUM(I33:V33) -> 21 | Y33: Mins
G34: Hrs | H34: NVA | O34: 3 | Q34: 4 | S34: 0.5 | U34: 0.5 | X34: =SUM(I34:V34) -> 8 | Y34: Hrs
G35: Days | H35: Delay | J35: 8 | L35: 16 | N35: 60 | P35: 8 | R35: =6*7*8 -> 336 | T35: 1 | V35: 1 | X35: =SUM(I35:V35) -> 430 | Y35: Days
K39: Widget Defined | M39: Manufacturing Processes | AM39: Summary
K41: Lot Size
L42: Inventory
K43: ADD | L43: Type | N43: Rolls | O43: Ink | P43: Corrugated | Q43: Sheets | AH43: RM | AI43: WIP | AJ43: FG
AN44: Read
L45: Pieces | AM45: =L45 -> Pieces | AN45: =SUM(N45:AK45) -> 0
L46: Days | AM46: =L46 -> Days | AN46: =SUM(N46:AK46) -> 0
L47: $'s | AM47: =L47 -> $'s | AN47: =SUM(N47:AK47) -> 0
U48: Fab | W48: Machine | Y48: Weld | AA48: Hydro/Dip | AC48: Vessel Assy | AE48: Paint | AG48: Ready to Ship
K50: Manning | L50: # FTE | AM50: =L50 -> # FTE | AN50: =SUM(U50:AK50) -> 0
L51: # Temps | AM51: =L51 -> # Temps | AN51: 0
L52: OT $ / Week | AM52: OT $ / Week | AN52: 0
L53: # Shifts | AM53: # Shifts | AN53: 0
K54: Equipment | AM54: 0 | AN54: 0
AM55: 0 | AN55: 0
K56: Perf | L56: Ideal speed | AM56: Ideal speed | AN56: 0
L57: Avg. Run Speed | AM57: Avg. Run Speed | AN57: 0
L58: P % | AM58: P % | AN58: 0
AM59: 0 | AN59: 0
K60: Avail | L60: DT Hrs | AM60: DT Hrs | AN60: 0
L61: CO Hrs | AM61: CO Hrs | AN61: 0
L62: A % | AM62: A % | AN62: 0
AM63: 0 | AN63: 0
L64: # CO's / Week | M64: Major | AM64: # CO's / Week | AN64: 0
L65: CO Time | M65: Major | AM65: CO Time | AN65: 0
L66: # CO's / Week | M66: Minor | AM66: # CO's / Week | AN66: 0
L67: CO Time | M67: Minor | AM67: CO Time | AN67: 0
AM68: 0 | AN68: 0
K69: Yield | L69: Scrap % | AM69: Scrap % | AN69: 0
L70: Scrap $ | AM70: Scrap $ | AN70: 0
L71: Y % | AM71: Y % | AN71: 0
K72: OEE | AM72: 0 | AN72: 0
AM73: 0 | AN73: 0
K74: Other
S78: Units | AI78: Units | AK78: Mfg | AL78: Trans | AN78: Total
S79: Mins | T79: VA (C/T) | U79: 5 | W79: 2 | Y79: 10 | AA79: 1 | AC79: 1 | AE79: 0.5 | AG79: 0.5 | AI79: Mins | AK79: =SUM(U79:AG79) -> 20 | AL79: =X33 -> 21 | AN79: =AK79+AL79 -> 41
S80: Hrs | T80: NVA | U80: 10 | W80: 3 | Y80: 10 | AA80: 2 | AC80: 2 | AE80: 2 | AG80: 1 | AI80: Hrs | AK80: =SUM(U80:AG80) -> 30 | AL80: =X34 -> 8 | AN80: =AK80+AL80 -> 38
S81: Days | T81: Delay | V81: 4 | X81: 4 | Z81: 8 | AB81: 4 | AD81: 4 | AF81: 8 | AI81: Days | AK81: =SUM(U81:AG81) -> 32 | AL81: =X35 -> 430 | AN81: =AK81+AL81 -> 462
L82: Distance Ft

Sheet 7-(12) Month Plan
B1: Brainstormed Ideas/Project Descriptions which Support the High-Level Business Goals | C1: Estimated Impact on Goal #1 | D1: Estimated Impact on Goal #2 | E1: Estimated Impact on Goal #3 | F1: Actual Impact on Goal #1 | G1: Actual Impact on Goal #2 | H1: Actual Impact on Goal #3
A2: 1 | B2: Project 1 | C2: 0 | D2: 0 | E2: 0
A3: 2 | B3: Project 2 | C3: 0 | D3: 0 | E3: 0
A4: 3 | B4: Project 3 | C4: 0 | D4: 0 | E4: 0
A5: 4 | B5: Project 4 | C5: 0 | D5: 0 | E5: 0
A6: 5 | B6: Project 5 | C6: 0 | D6: 0 | E6: 0
A7: 6 | B7: Project 6 | C7: 0 | D7: 0 | E7: 0
A8: 7 | B8: Project 7 | C8: 0 | D8: 0 | E8: 0
A9: 8 | B9: Project 8 | C9: 0 | D9: 0 | E9: 0
A10: 9 | B10: Project 9 | C10: 0 | D10: 0 | E10: 0
A11: 10 | B11: Project 10 | C11: 0 | D11: 0 | E11: 0
A12: 11 | B12: Project 11 | C12: 0 | D12: 0 | E12: 0
A13: 12 | B13: Project 12 | C13: 0 | D13: 0 | E13: 0
B15: Estimated Current Year Impact = | C15: =SUM(C2:C14) -> 0 | D15: =SUM(D2:D14) -> 0 | E15: =SUM(E2:E14) -> 0
B17: Target = | C17: 0 | D17: 0 | E17: 0
C20: Implementation Project Timing
C21: January | D21: February | E21: March | F21: April | G21: May | H21: June | I21: July | J21: August | K21: September | L21: October | M21: November | N21: December
B22: Project 1 | C22: A project started on 1 January and completed in 3 months may only have 9 months worth of impact
B23: Project 2
B24: Project 3
B25: Project 4 | F25: A project started on 1 April and completed in 3 months may only have 6 months worth of impact
B26: Project 5
B27: Project 6
B28: Project 7 | I28: A project started on 1 July and completed in 3 months may only have 3 months worth of impact
B29: Project 8
B30: Project 9
B31: Project 10 | L31: A project started on 1 October and completed in 3 months may not have any impact this year
B32: Project 11
B33: Project 12

Sheet Printouts
B3: Equipment | D3: Step #
B4: Manning
C5: # FTE
C6: # Temps
G7: PC Operations | J7: Step # | M7: Manual Operations | P7: Step #
B8: Performance | C8: Ideal speed | H8: Manning | N8: Manning
C9: Avg. Run Speed | I9: # FTE | O9: # FTE
C10: P % | I10: # Temps | O10: # Temps
B12: Availability | C12: Available Hrs | I12: Handoffs | O12: Handoffs
C13: DT Hrs | I13: Approvals | O13: Approvals
C14: CO Hrs
C15: A % | H15: Transactions | I15: Screens Accessed | O15: # Errors / Week
I16: Outbound Email / Week | O16: Office Distance Ft
C17: Major # CO's / Week | I17: Inbound Email / Week
C18: CO Time | I18: Email hours / Week | N18: Other
C19: Minor # CO's / Week
C20: CO Time | I20: # Errors / Week
I21: Office Distance Ft
B22: Yield | C22: Scrap %
C23: Scrap $ | H23: Other
C24: Y %
B25: OEE
B27: Other | H27: Mins | I27: VA (C/T) | N27: Mins | O27: VA (C/T)
H28: Hrs | I28: NVA | N28: Hrs | O28: NVA
H29: Days | I29: Delay | N29: Days | O29: Delay
I31: Step Distance Traveled | O31: Step Distance Traveled
B32: Mins | C32: VA (C/T) | I32: Cumulative Distance Traveled | O32: Cumulative Distance Traveled
B33: Hrs | C33: NVA
B34: Days | C34: Delay
C36: Step Distance Traveled
C37: Cumulative Distance Traveled
